bitfinex-derivatives/quotes_ETHF0:USTF0_20260121
["timestamp","ask_amount","ask_price","bid_price","bid_amount"]
[1769000538855,0.14861298,2933.7,2932.7,0.85377294]
[1769000539061,0.31922298,2933.7,2932.7,0.85377294]
[1769000542264,0.17062,2933.6,2932.7,0.85377294]
[1769000543663,0.17062,2933.5,2932.7,0.85377294]
[1769000545164,0.17063,2933.4,2932.7,0.85377294]
[1769000545364,0.17063,2933.3,2932.7,0.85377294]
[1769000546163,0.14861298,2933.7,2933.0,0.85377294]
[1769000546560,0.17063,2933.3,2933.0,0.85377294]
[1769000546760,0.14861298,2933.7,2933.0,0.85377294]
[1769000547467,0.17063,2933.3,2933.0,0.85377294]
[1769000547667,0.14861298,2933.7,2933.0,0.85377294]
[1769000547857,0.17062,2933.6,2933.0,0.85377294]
[1769000549269,0.17063,2933.4,2933.0,0.85377294]
[1769000553166,0.14861298,2933.9,2933.1,13.30458399]
[1769000553474,0.17063,2933.4,2933.1,13.30458399]
[1769000553669,0.14861298,2933.6,2932.4,0.00512155]
[1769000553965,0.14861298,2933.5,2932.4,0.00512155]
[1769000554566,0.17065,2933.0,2932.6,0.85377294]
[1769000554770,0.14861298,2933.5,2932.6,0.85377294]
[1769000554968,0.14861298,2933.5,2932.9,0.85377294]
[1769000555170,0.14861298,2934.0,2933.2,0.85377294]
[1769000555971,0.17062,2933.5,2933.2,0.85377294]
[1769000556271,0.14861298,2934.0,2933.2,0.85377294]
[1769000556972,0.17062,2933.5,2933.2,0.85377294]
[1769000557167,0.14861298,2934.0,2933.2,0.85377294]
[1769000557368,0.17062,2933.5,2932.9,0.85377294]
[1769000557672,0.17063,2933.4,2932.9,0.85377294]
[1769000559164,0.14861298,2934.0,2932.9,0.85377294]
[1769000559365,0.15065781,2934.4,2933.5,0.85377294]
[1769000559570,0.00204483,2934.4,2933.8,0.85377294]
[1769000559774,0.17056,2934.6,2934.1,0.85377294]
[1769000560670,0.17056,2934.6,2934.1,0.86295787]
[1769000560869,0.17056,2934.6,2934.1,0.00918493]
[1769000561673,0.31917298,2934.6,2934.1,0.00918493]
[1769000561870,0.31917298,2934.5,2933.5,0.85377294]
[1769000562070,0.14861298,2934.5,2933.5,0.85377294]
[1769000562268,0.14861298,2934.5,2933.2,2.45969693]
[1769000562269,0.00407236,2934.6,2933.8,0.85377294]
[1769000562966,0.00407236,2934.6,2933.8,0.85764351]
[1769000563169,0.17057,2934.4,2933.8,0.85764351]
[1769000563363,0.17057,2934.4,2933.9,0.00511256]
[1769000563977,0.00407236,2934.6,2933.9,0.00511256]
[1769000564270,0.14861298,2935.6,2934.4,0.85377294]
[1769000564876,0.14861298,2935.6,2933.9,0.00511256]
[1769000565076,0.17053,2935.1,2933.9,0.00511256]
[1769000567887,0.17053,2935.0,2933.9,0.00511256]
[1769000570184,0.14224844,2935.3,2933.9,0.00511256]
[1769000570185,0.17055,2934.8,2934.0,13.30458399]
[1769000570578,0.17055,2934.8,2933.9,0.00511256]
[1769000573086,0.14224844,2935.3,2933.9,1.26074531]
[1769000574380,0.17055,2934.8,2933.9,1.26074531]
[1769000574684,0.14224844,2935.3,2933.9,1.26074531]
[1769000575686,0.17055,2934.8,2933.9,1.26074531]
[1769000575882,0.14224844,2935.3,2933.9,1.26074531]
[1769000577575,0.17055,2934.8,2933.9,1.26074531]
[1769000577784,0.14224844,2935.3,2933.9,1.26074531]
[1769000577987,0.14224844,2935.3,2934.6,0.01341652]
[1769000578487,0.1389262,2935.2,2933.9,1.26074531]
[1769000578881,0.1389262,2935.2,2934.5,0.03940498]
[1769000579282,0.1389262,2935.2,2934.8,0.07880921]
[1769000579685,0.1389262,2935.2,2933.9,1.26074531]
[1769000580089,0.1389262,2935.2,2934.5,0.03945047]
[1769000580487,0.17053,2935.1,2934.5,0.03945047]
[1769000580686,0.1389262,2934.7,2933.9,0.00511256]
[1769000582878,0.3094762,2934.7,2933.9,0.00511256]
[1769000583082,0.1389262,2934.6,2933.9,0.00511256]
[1769000583283,0.1389262,2934.4,2934.0,13.30458399]
[1769000583685,0.1389262,2934.4,2933.9,0.00511256]
[1769000583890,0.1389262,2934.4,2933.8,0.00387057]
[1769000584090,0.3094962,2934.4,2933.8,0.00387057]
[1769000584293,0.1389262,2934.1,2933.0,8.097]
[1769000584886,0.1389262,2934.1,2933.3,0.00511256]
[1769000585280,0.14214058,2934.1,2933.3,0.00943711]
[1769000586494,0.3095162,2934.0,2933.3,0.00943711]
[1769000587595,0.1389262,2933.9,2933.6,0.04229052]
[1769000587786,0.1389262,2933.9,2933.3,0.00943711]
[1769000589993,0.1389262,2933.9,2932.7,3.45378]
[1769000589994,0.1389262,2933.4,2932.8,2.45969693]
[1769000590199,0.1389262,2933.4,2932.4,4.29571377]
[1769000590496,0.1389262,2933.4,2932.3,11.93669693]
[1769000590898,0.17063,2933.3,2932.3,11.93669693]
[1769000591092,0.00321438,2934.1,2932.5,2.45969693]
[1769000591291,0.14214058,2934.1,2932.7,2.45969693]
[1769000591484,0.1389262,2933.8,2932.7,2.45969693]
[1769000591685,0.1389262,2933.8,2932.6,2.45969693]
[1769000593098,0.1389262,2933.7,2932.6,2.45969693]
[1769000593302,0.1389262,2933.5,2932.5,0.00511256]
[1769000593804,0.1389262,2933.4,2932.5,0.00511256]
[1769000593996,0.1389262,2933.4,2932.9,0.04366867]
[1769000594193,0.00321438,2934.1,2932.9,0.04366867]
[1769000594393,0.17062,2933.5,2932.9,0.04366867]
[1769000594597,0.00321438,2934.1,2933.2,0.05098727]
[1769000594797,0.17062,2933.5,2933.2,0.05098727]
[1769000595096,0.17379438,2934.1,2933.2,0.05098727]
[1769000595494,0.17379438,2934.1,2932.6,3.45378]
[1769000595697,0.17379438,2934.1,2933.6,0.05098727]
[1769000596202,0.31159128,2934.1,2933.6,0.05098727]
[1769000596396,0.1377969,2934.0,2933.6,0.05098727]
[1769000596594,0.1377969,2934.0,2932.6,3.45378]
[1769000598104,0.3083869,2934.0,2932.6,3.45378]
[1769000598306,0.3083869,2934.0,2932.7,13.30458399]
[1769000598802,0.3083869,2934.0,2932.6,3.45378]
[1769000599903,0.3083869,2934.0,2933.3,0.03583944]
[1769000600400,0.3083869,2934.0,2933.6,0.04664558]
[1769000600798,0.1377969,2933.9,2933.6,0.04664558]
[1769000601307,0.1377969,2933.9,2932.6,3.45378]
[1769000601605,0.3083969,2933.9,2932.7,3.45378]
[1769000606102,0.3083969,2933.9,2933.3,0.03938274]
[1769000606301,0.1377969,2933.7,2933.3,0.03938274]
[1769000606601,0.1706,2933.8,2933.3,0.03938274]
[1769000606808,0.1706,2933.8,2932.8,3.45378]
[1769000606809,0.1706,2933.8,2933.5,0.04663831]
[1769000607710,0.1706,2933.8,2932.6,5.91347693]
[1769000608312,0.1706,2933.8,2932.7,2.45969693]
[1769000611715,0.1706,2933.8,2932.8,2.45969693]
[1769000612809,0.1706,2933.8,2932.8,5.91347693]
[1769000613106,0.1706,2933.8,2932.9,2.45969693]
[1769000613309,1.00511256,2934.5,2933.2,0.85318528]
[1769000613508,1.0,2934.5,2933.3,11.93969693]
[1769000613698,0.17054,2934.9,2933.6,0.85318528]
[1769000613902,0.1377969,2935.1,2933.6,0.85318528]
[1769000614110,0.97492673,2935.0,2933.6,0.85318528]
[1769000614311,0.83712983,2934.9,2933.6,0.85318528]
[1769000614706,0.17055,2934.7,2934.0,0.00511256]
[1769000614905,0.17056,2934.6,2934.0,0.00511256]
[1769000615307,0.3083669,2934.4,2933.4,2.45969693]
[1769000615506,0.17058,2934.2,2933.3,11.93969693]
[1769000615705,0.17058,2934.2,2933.3,9.48]
[1769000615907,0.17059,2934.0,2933.1,2.45969693]
[1769000616111,0.3083869,2934.0,2933.0,5.91347693]
[1769000616312,0.3083869,2934.0,2933.0,3.45378]
[1769000616512,0.3083869,2934.0,2933.2,0.00511256]
[1769000617307,0.3083969,2933.9,2933.2,0.00511256]
[1769000617914,0.3083969,2933.8,2933.2,0.00511256]
[1769000618309,0.3084069,2933.7,2932.7,9.479]
[1769000619318,0.3084069,2933.7,2932.7,11.93869693]
[1769000619616,0.17061,2933.7,2932.7,11.93869693]
[1769000621813,0.3084069,2933.7,2932.9,0.00511256]
[1769000622210,0.17062,2933.6,2932.9,0.00511256]
[1769000623704,0.17062,2933.5,2932.9,0.00511256]
[1769000623910,0.17063,2933.4,2932.9,0.00511256]
[1769000624314,0.3084269,2933.4,2932.9,0.00511256]
[1769000624818,0.17063,2933.3,2932.9,0.00511256]
[1769000625219,0.17064,2933.1,2932.4,2.45969693]
[1769000625420,0.17064,2933.1,2932.3,2.46274042]
[1769000626321,0.17064,2933.1,2932.3,0.00304349]
[1769000626613,0.00511256,2933.0,2932.3,0.00304349]
[1769000626917,0.1377969,2933.4,2932.3,0.00304349]
[1769000627618,0.17064,2933.1,2932.3,0.00304349]
[1769000627822,0.00511256,2933.0,2932.3,0.00304349]
[1769000628120,0.17064,2933.1,2932.4,0.00511256]
[1769000628325,0.14952065,2934.1,2932.4,13.30969655]
[1769000628622,0.17063,2933.4,2932.4,0.00511256]
[1769000631024,0.17063,2933.4,2932.4,2.46480949]
[1769000632421,0.17063,2933.4,2932.4,0.00511256]
[1769000636125,0.17063,2933.4,2932.4,2.46480949]
[1769000636515,0.17063,2933.4,2932.4,0.00511256]
[1769000637524,0.17063,2933.4,2932.4,2.46480949]
[1769000637823,0.17063,2933.4,2932.4,0.00511256]
[1769000638325,0.17063,2933.4,2932.4,2.46480949]
[1769000639034,0.17063,2933.4,2932.4,5.91858949]
[1769000639725,0.17063,2933.4,2932.4,3.45889256]
[1769000640527,0.14330068,2933.3,2932.4,3.45889256]
[1769000641534,0.17063,2933.4,2932.4,3.45889256]
[1769000641836,0.1706,2933.9,2932.5,0.14407885]
[1769000642221,0.00511256,2933.5,2932.5,0.14407885]
[1769000642424,0.1706,2933.9,2932.5,0.14407885]
[1769000642623,0.1706,2933.9,2932.5,3.21244583]
[1769000642824,0.1706,2933.9,2932.6,0.14407885]
[1769000643026,0.14330068,2934.2,2932.8,2.42069627]
[1769000643426,0.1706,2933.9,2932.8,2.42069627]
[1769000643626,0.14330068,2934.2,2932.8,2.42069627]
[1769000643828,0.00511256,2933.6,2932.8,2.42069627]
[1769000644027,0.17056,2934.5,2932.9,0.14407885]
[1769000644232,0.17056,2934.5,2933.0,2.56477512]
[1769000644424,0.17056,2934.5,2933.1,2.42069627]
[1769000645132,0.17056,2934.5,2933.1,2.56477512]
[1769000645931,0.17056,2934.5,2933.3,2.42069627]
[1769000646136,0.14690529,2935.0,2933.3,2.56477512]
[1769000646330,0.17056,2934.5,2933.3,2.56477512]
[1769000646923,0.14690529,2935.0,2933.4,2.42069627]
[1769000647328,0.31743529,2935.0,2933.9,0.00511256]
[1769000649537,0.14330068,2934.9,2933.9,0.00511256]
[1769000649838,0.17413461,2935.0,2933.9,0.00511256]
[1769000653637,0.1705,2935.6,2934.1,0.14407885]
[1769000654639,0.17187614,2935.6,2934.1,0.14407885]
[1769000655645,0.31560381,2935.6,2934.1,0.14407885]
[1769000656731,0.17187614,2935.6,2934.1,0.14407885]
[1769000656933,0.31419767,2936.0,2934.5,1.2555669]
[1769000657134,0.17048,2935.9,2934.5,10.7335669]
[1769000657737,0.14372767,2936.4,2934.6,0.14442574]
[1769000658041,0.14372767,2936.4,2934.6,0.1471739]
[1769000658243,0.17046,2936.3,2934.8,0.14442574]
[1769000659250,0.2412609,2936.7,2934.6,0.00274816]
[1769000659251,0.14372767,2936.6,2935.0,1.39999264]
[1769000659727,0.14372767,2936.6,2935.5,0.00511256]
[1769000659932,0.17047,2936.1,2935.5,0.00511256]
[1769000665547,0.17558256,2936.1,2935.5,0.00511256]
[1769000668645,0.17044,2936.6,2935.7,0.85191121]
[1769000669250,0.17045,2936.5,2935.7,0.85191121]
[1769000670143,0.85191121,2937.8,2936.1,0.85191121]
[1769000670344,0.17041,2937.1,2936.1,0.85191121]
[1769000670744,0.17041,2937.1,2936.6,0.85191121]
[1769000670945,0.14372767,2937.5,2936.6,0.85191121]
[1769000671749,0.31411767,2937.5,2936.6,0.85191121]
[1769000671942,0.31411767,2937.5,2936.6,0.79471121]
[1769000672143,0.17039,2937.5,2936.6,0.79471121]
[1769000673051,0.17039,2937.5,2936.2,0.14442574]
[1769000673349,0.17039,2937.5,2936.2,13.44900973]
[1769000673537,0.14372767,2937.9,2936.4,0.14442574]
[1769000673844,1.83739715,2939.1,2936.4,0.14442574]
[1769000673845,0.17036,2938.0,2936.4,0.14442574]
[1769000674338,0.17033,2938.5,2936.9,0.1495383]
[1769000674538,0.27239488,2939.3,2936.9,0.00841007]
[1769000674738,0.05926365,2939.1,2936.9,0.00841007]
[1769000674938,0.17038,2937.6,2936.9,0.00841007]
[1769000676043,0.17034,2938.4,2936.9,0.00841007]
[1769000676244,0.17034,2938.3,2936.9,0.00841007]
[1769000676449,0.17034,2938.3,2936.9,0.15283581]
[1769000679849,1.82363797,2940.3,2937.7,0.14442574]
[1769000680154,0.17027,2939.6,2938.1,0.14442574]
[1769000680461,0.17021,2940.6,2939.4,0.14442574]
[1769000680756,0.17018,2941.1,2939.4,0.1478358]
[1769000681356,0.05920386,2942.2,2939.9,0.14442574]
[1769000681357,0.17014,2941.8,2939.9,0.14442574]
[1769000681854,0.17019,2941.0,2939.4,0.1478358]
[1769000682048,0.14372767,2941.0,2939.4,0.1478358]
[1769000682245,0.17021,2940.5,2939.4,0.00341006]
[1769000682852,0.17024,2940.1,2939.4,0.00341006]
[1769000683055,0.17024,2940.1,2938.8,4.802]
[1769000683252,0.17024,2940.1,2939.5,0.00510359]
[1769000683456,0.27871825,2942.3,2939.5,0.00510359]
[1769000683457,0.17019,2940.9,2939.5,0.14952933]
[1769000683953,0.00338026,2940.9,2939.9,0.14442574]
[1769000684355,0.1701,2942.4,2940.4,0.14442574]
[1769000684549,0.17011,2942.2,2940.4,0.14442574]
[1769000684750,0.17012,2942.1,2940.4,0.14442574]
[1769000684954,0.17013,2942.0,2941.1,0.00510359]
[1769000686461,0.14372767,2942.3,2939.9,0.1404919]
[1769000687357,0.17015,2941.6,2939.9,0.1404919]
[1769000687558,0.17015,2941.6,2940.8,0.00510359]
[1769000687960,0.1701,2942.4,2940.8,0.00510359]
[1769000688159,0.1701,2942.4,2940.9,13.30458399]
[1769000688560,0.1701,2942.4,2940.8,0.14559549]
[1769000688759,0.14522326,2942.8,2940.8,0.14559549]
[1769000688760,0.17011,2942.3,2940.8,0.14559549]
[1769000688958,0.17012,2942.2,2940.8,0.14559549]
[1769000689958,0.14522326,2942.9,2940.8,0.14559549]
[1769000690156,0.17014,2941.8,2940.8,0.00510359]
[1769000690862,0.17016,2941.5,2940.8,0.00510359]
[1769000691155,0.14522326,2942.3,2940.8,0.00510359]
[1769000691663,1.2535207,2942.8,2940.8,3.59e-06]
[1769000691862,1.2535207,2942.8,2939.5,0.00404415]
[1769000691863,0.14522326,2942.1,2939.8,0.1404919]
[1769000692156,0.17017,2941.3,2939.8,0.1404919]
[1769000693352,0.17017,2941.2,2939.8,0.1404919]
[1769000696263,0.14232756,2942.2,2939.8,0.1404919]
[1769000696459,0.1702,2940.7,2939.8,0.1404919]
[1769000696658,0.1702,2940.7,2939.5,0.00404415]
[1769000696861,0.17022,2940.5,2939.5,0.00404415]
[1769000697061,0.14325227,2941.6,2939.5,0.14453605]
[1769000697460,0.17019,2940.9,2939.5,0.14453605]
[1769000697661,0.17019,2940.9,2940.3,0.00510359]
[1769000698976,0.13748026,2942.1,2940.3,0.00510359]
[1769000699268,0.17016,2941.4,2940.3,0.00510359]
[1769000699569,0.17013,2941.9,2940.3,0.14966379]
[1769000699860,0.17014,2941.8,2940.3,0.14966379]
[1769000700060,0.17014,2941.7,2940.3,0.14966379]
[1769000700458,0.17011,2942.3,2940.5,0.1445602]
[1769000701262,0.00510359,2941.7,2940.5,0.1445602]
[1769000701974,0.17016,2941.5,2940.5,0.1445602]
[1769000702174,0.17016,2941.4,2940.5,0.1445602]
[1769000702472,0.17016,2941.4,2940.3,0.00510359]
[1769000702473,0.17017,2941.2,2940.3,0.00510359]
[1769000703574,0.17017,2941.2,2940.4,13.30458399]
[1769000703768,0.00510359,2941.7,2940.5,0.1445602]
[1769000704366,0.23905549,2943.0,2940.5,0.1445602]
[1769000704367,0.1701,2942.4,2940.5,0.1445602]
[1769000704665,0.1701,2942.4,2941.0,0.1445602]
[1769000704874,0.17007,2942.9,2941.9,1.2535207]
[1769000705073,0.17007,2942.9,2941.9,0.00244537]
[1769000705470,0.23905549,2943.0,2941.9,0.00244537]
[1769000705670,0.17004,2943.5,2942.1,0.00510359]
[1769000705866,0.17001,2944.1,2942.4,1.3980809]
[1769000706070,0.17001,2944.1,2942.5,0.1445602]
[1769000706371,3.07401784,2945.6,2942.5,0.1445602]
[1769000706372,0.13748026,2944.3,2942.5,0.1445602]
[1769000706574,0.17003,2943.6,2942.0,0.1445602]
[1769000706769,0.13748026,2943.4,2941.9,0.00244537]
[1769000707271,0.17012,2942.2,2940.4,1.3980809]
[1769000707471,0.17012,2942.1,2940.6,0.1445602]
[1769000707673,0.17014,2941.9,2940.5,1.984]
[1769000707875,0.00510359,2941.6,2941.1,0.00510359]
[1769000708263,0.00757876,2941.6,2941.1,0.00832594]
[1769000708471,0.1701,2942.5,2941.1,0.15288614]
[1769000709083,0.13748026,2943.1,2941.1,0.00832594]
[1769000709686,0.13748026,2942.9,2941.1,0.00832594]
[1769000709865,0.1701,2942.4,2941.1,0.00832594]
[1769000710271,0.17013,2941.9,2941.1,0.00832594]
[1769000710483,0.30763026,2941.6,2940.1,0.1445602]
[1769000711580,0.30763026,2941.6,2940.1,0.14750043]
[1769000711766,0.17015,2941.6,2940.1,0.14750043]
[1769000711966,0.17015,2941.6,2940.6,0.00510359]
[1769000713180,0.30764026,2941.5,2940.6,0.00510359]
[1769000713376,0.17018,2941.1,2940.1,0.00294023]
[1769000714275,0.00510359,2941.4,2940.1,0.14750043]
[1769000714482,0.00510359,2941.4,2940.5,0.00510359]
[1769000715279,0.17014,2941.8,2940.5,0.14966379]
[1769000717978,0.00321641,2941.9,2940.5,0.14966379]
[1769000718178,0.00321641,2941.9,2940.7,0.13627893]
[1769000718783,0.13893043,2944.5,2941.7,0.13627893]
[1769000718975,0.17002,2943.9,2942.2,0.13627893]
[1769000719175,0.13893043,2944.1,2942.2,0.13627893]
[1769000719484,0.00510359,2943.3,2942.0,2.007]
[1769000719681,0.00510359,2943.3,2942.9,0.00510359]
[1769000719986,0.00510359,2943.3,2942.1,40.8]
[1769000720374,0.00510359,2943.3,2942.0,0.00432462]
[1769000720873,0.00510359,2943.3,2942.0,40.80432462]
[1769000721079,0.16999,2944.4,2942.5,0.13627893]
[1769000721585,0.13893043,2944.7,2942.5,0.13627893]
[1769000721977,0.17001,2944.1,2942.5,6.67]
[1769000722278,0.17001,2944.1,2942.4,0.00510359]
[1769000722476,0.17001,2944.1,2942.4,0.14138252]
[1769000723475,0.13893043,2944.7,2942.4,0.14138252]
[1769000724690,0.16998,2944.6,2942.4,0.14138252]
[1769000724882,0.13893043,2944.7,2942.4,0.14138252]
[1769000725084,0.00510359,2943.8,2942.4,7.36898252]
[1769000726387,0.14403402,2943.8,2942.4,7.259]
[1769000726685,0.14403402,2943.8,2942.2,9.451]
[1769000727094,0.14403402,2943.8,2942.1,9.58190091]
[1769000727594,0.00510359,2943.8,2942.2,0.13090091]
[1769000727784,0.17512359,2943.8,2942.2,0.13090091]
[1769000730595,0.17512359,2943.8,2942.0,50.25532462]
[1769000730596,0.17003,2943.7,2942.0,50.25532462]
[1769000730796,0.13893043,2943.7,2942.0,0.00432462]
[1769000731196,0.13893043,2943.7,2942.6,0.00510359]
[1769000731397,0.13893043,2943.7,2942.0,0.00432462]
[1769000732498,0.30901043,2942.9,2942.0,0.00432462]
[1769000732691,0.17008,2942.8,2942.0,0.00432462]
[1769000733499,0.13893043,2942.9,2940.9,2.52505627]
[1769000733696,0.13893043,2942.9,2940.9,0.13627893]
[1769000733895,0.17012,2942.1,2940.9,0.13627893]
[1769000734103,0.17012,2942.1,2941.6,3.59e-06]
[1769000734397,0.17012,2942.1,2940.5,40.93627893]
[1769000734597,0.17387242,2942.1,2940.6,0.13627893]
[1769000734799,0.00375242,2942.1,2941.0,1.13627893]
[1769000735100,0.00375242,2942.1,2941.1,0.13627893]
[1769000735801,0.17009,2942.6,2941.1,0.13627893]
[1769000736892,0.00510359,2942.1,2941.0,1.0]
[1769000738500,0.17014,2941.7,2941.0,1.0]
[1769000740102,0.00510359,2942.1,2941.0,0.28722799]
[1769000740304,0.17016,2941.5,2941.0,7.99e-06]
[1769000740502,0.17016,2941.5,2940.5,0.0032713]
[1769000740708,0.00510359,2942.1,2940.5,0.0032713]
[1769000741408,0.17016,2941.4,2940.5,0.0032713]
[1769000741605,0.17017,2941.2,2940.1,0.13627893]
[1769000742411,0.17014,2941.8,2940.1,0.13627893]
[1769000742708,0.17015,2941.6,2940.1,0.13968015]
[1769000742905,0.00261985,2941.8,2940.1,0.13968015]
[1769000744008,0.17017,2941.2,2940.1,0.13968015]
[1769000744307,0.00261985,2941.8,2940.1,0.13968015]
[1769000744308,0.17275985,2941.8,2940.1,0.13968015]
[1769000744713,0.17016,2941.5,2940.1,0.13968015]
[1769000746011,0.00261985,2941.8,2940.1,0.13968015]
[1769000746012,0.17016,2941.4,2940.1,0.13968015]
[1769000747802,0.26344828,2941.7,2940.1,0.00340122]
[1769000748020,0.00261985,2941.8,2940.1,0.00340122]
[1769000748206,0.17017,2941.2,2940.3,0.26349174]
[1769000748407,0.00261985,2941.8,2940.3,0.26349174]
[1769000749108,0.17018,2941.1,2940.3,0.26349174]
[1769000749313,0.17018,2941.1,2940.1,0.00340122]
[1769000749614,0.17019,2941.0,2940.1,0.00340122]
[1769000752309,0.00261985,2941.8,2940.1,0.26689296]
[1769000752511,0.17016,2941.4,2940.1,0.26689296]
[1769000753110,0.17017,2941.3,2940.1,0.26689296]
[1769000754507,0.17017,2941.2,2940.1,0.26689296]
[1769000755318,0.00261985,2941.8,2940.4,0.26349174]
[1769000755520,0.00510359,2942.1,2940.5,0.26349174]
[1769000756216,0.00510359,2942.1,2940.5,2.05531023]
[1769000756421,0.17522359,2942.1,2940.6,0.26349174]
[1769000756716,0.17645318,2942.1,2940.6,0.26349174]
[1769000757118,0.17645318,2942.1,2940.7,41.06349174]
[1769000757320,0.17645318,2942.1,2940.7,0.26349174]
[1769000758108,0.26344828,2943.0,2940.7,0.26349174]
[1769000758313,0.17009,2942.7,2940.8,0.50796619]
[1769000758512,0.17009,2942.7,2941.0,0.50796619]
[1769000759014,0.17009,2942.7,2941.1,0.50796619]
[1769000759222,0.17009,2942.7,2941.2,0.50796619]
[1769000760314,0.47625524,2943.1,2941.2,0.50796619]
[1769000760620,0.1701,2942.5,2941.2,0.50796619]
[1769000761720,0.1701,2942.5,2941.3,0.50796619]
[1769000762319,0.17006,2943.1,2941.8,0.50796619]
[1769000762513,0.47625524,2943.7,2941.9,0.50796619]
[1769000762716,0.47625524,2943.7,2941.9,2.29978468]
[1769000762922,0.47625524,2943.7,2942.0,1.79181849]
[1769000763125,0.17009,2942.7,2942.0,13.00212047]
[1769000763416,0.17009,2942.7,2941.5,2.38877734]
[1769000763417,0.17009,2942.7,2941.7,1.79181849]
[1769000764122,0.17009,2942.7,2941.6,1.79181849]
[1769000764322,0.17009,2942.7,2941.5,1.79181849]
[1769000764521,0.17009,2942.7,2941.6,1.79181849]
[1769000765021,0.17009,2942.7,2941.6,2.29978468]
[1769000765217,0.17005,2943.3,2941.7,0.50796619]
[1769000765424,0.17006,2943.2,2942.0,0.50796619]
[1769000766420,0.17002,2943.8,2942.1,0.50796619]
[1769000766718,0.17002,2943.8,2942.4,0.50796619]
[1769000767025,0.17003,2943.7,2942.4,0.51211396]
[1769000767221,0.17003,2943.6,2942.4,0.51211396]
[1769000771030,0.17003,2943.6,2942.4,41.31211396]
[1769000771234,0.17003,2943.6,2942.5,0.50796619]
[1769000771725,0.47625524,2944.8,2942.6,0.50796619]
[1769000771917,0.17,2944.2,2942.7,0.50796619]
[1769000772427,0.16998,2944.6,2942.8,0.50796619]
[1769000772629,0.00510359,2943.7,2942.8,0.50796619]
[1769000772824,0.16999,2944.4,2942.8,0.50796619]
[1769000774029,0.47625524,2945.3,2943.0,0.50796619]
[1769000774224,0.16997,2944.8,2943.1,0.50796619]
[1769000774426,0.47625524,2945.3,2943.4,0.50796619]
[1769000774427,0.16997,2944.7,2943.4,0.50796619]
[1769000775222,0.47625524,2945.8,2943.7,0.50796619]
[1769000775823,0.75516337,2945.6,2943.7,0.50796619]
[1769000776223,0.75516337,2946.1,2943.7,0.50796619]
[1769000776428,0.75516337,2946.0,2943.7,0.50796619]
[1769000776732,0.75516337,2945.4,2943.2,0.73088262]
[1769000777118,1.24740224,2945.9,2943.2,0.73088262]
[1769000777119,0.75516337,2945.2,2943.2,0.73088262]
[1769000777322,0.00509484,2944.6,2943.3,40.8]
[1769000777523,0.75516337,2946.0,2943.8,0.73088262]
[1769000778219,0.75516337,2945.8,2943.8,0.73088262]
[1769000778422,0.75516337,2945.8,2943.9,13.00212047]
[1769000778624,0.75516337,2945.8,2944.0,0.73088262]
[1769000778826,0.75516337,2945.8,2944.6,0.00509484]
[1769000779126,0.75516337,2945.8,2944.6,0.00904071]
[1769000779427,0.1699,2945.9,2944.6,0.00904071]
[1769000779826,0.75516337,2946.9,2945.1,0.73088262]
[1769000780233,0.75516337,2946.5,2944.6,0.73482849]
[1769000780425,0.16989,2946.2,2945.7,4.84e-06]
[1769000780730,0.75516337,2947.6,2945.2,0.73088262]
[1769000781124,0.16985,2946.8,2945.2,0.73088262]
[1769000781326,0.16986,2946.6,2945.2,0.73088262]
[1769000782028,0.16986,2946.6,2945.6,0.00509484]
[1769000782828,0.16987,2946.5,2945.6,0.00509484]
[1769000784038,0.16987,2946.4,2945.6,0.00509484]
[1769000784326,0.1699,2945.9,2944.7,0.73088262]
[1769000784722,0.16992,2945.6,2944.6,0.00394587]
[1769000784922,0.00248286,2945.6,2944.6,5.87e-06]
[1769000785119,0.75764623,2945.6,2944.6,5.87e-06]
[1769000786233,0.16993,2945.5,2944.6,5.87e-06]
[1769000786435,0.16993,2945.4,2944.6,5.87e-06]
[1769000786633,0.16994,2945.3,2944.6,5.87e-06]
[1769000788135,0.00509484,2946.3,2944.7,0.73088262]
[1769000789125,0.00655198,2946.3,2944.7,0.73088262]
[1769000790134,0.17643198,2946.3,2944.7,0.73088262]
[1769000790436,1.82049714,2948.1,2944.7,0.73088262]
[1769000790437,0.16985,2946.8,2945.2,0.73088262]
[1769000790632,0.16985,2946.8,2945.2,0.73597746]
[1769000791638,0.16987,2946.5,2945.2,0.73597746]
[1769000792434,0.16985,2946.9,2945.2,0.73597746]
[1769000793137,0.75516337,2947.5,2945.2,0.73597746]
[1769000793337,0.16985,2946.9,2945.4,0.73088262]
[1769000793929,0.75516337,2947.5,2945.4,0.73088262]
[1769000794131,0.16986,2946.7,2945.4,0.73088262]
[1769000797039,0.16986,2946.6,2945.4,0.73088262]
[1769000797938,0.16987,2946.5,2945.2,0.00509484]
[1769000798241,0.16988,2946.3,2945.2,0.00509484]
[1769000799644,0.16988,2946.2,2945.2,0.00509484]
[1769000802243,0.16987,2946.5,2945.2,0.73597746]
[1769000803443,0.16984,2947.0,2945.6,0.73088262]
[1769000803849,0.16984,2946.9,2945.6,0.73088262]
[1769000804551,0.16985,2946.8,2945.6,0.73088262]
[1769000804746,0.75516337,2947.3,2945.3,1.7765518]
[1769000804952,0.16988,2946.3,2945.2,3.45887484]
[1769000805140,0.16988,2946.3,2945.2,0.00509484]
[1769000805346,0.16989,2946.2,2945.2,0.00509484]
[1769000810247,1.05947383,2946.7,2945.2,0.00509484]
[1769000810448,0.16993,2945.4,2945.2,1e-08]
[1769000810649,0.16994,2945.3,2944.6,5.87e-06]
[1769000812042,0.16994,2945.2,2944.6,5.87e-06]
[1769000812248,0.16994,2945.2,2943.9,1.02087943]
[1769000813244,0.16994,2945.2,2943.9,1.0239724]
[1769000814256,0.0637422,2946.0,2943.9,1.0239724]
[1769000814445,0.16997,2944.7,2943.9,1.0239724]
[1769000814648,0.16997,2944.7,2943.9,0.00309297]
[1769000814845,0.16998,2944.6,2943.9,0.00309297]
[1769000815048,0.16994,2945.2,2944.0,1.02087943]
[1769000815952,0.16995,2945.0,2944.0,1.02087943]
[1769000817757,0.16993,2945.4,2944.0,1.02087943]
[1769000818955,0.16994,2945.2,2944.0,1.02087943]
[1769000819259,0.16995,2945.0,2944.0,1.02087943]
[1769000819455,0.16996,2944.8,2944.0,1.02087943]
[1769000819955,0.16997,2944.7,2943.9,0.00309297]
[1769000820957,0.32028785,2945.9,2943.9,0.00309297]
[1769000820958,0.16999,2944.5,2943.9,0.00309297]
[1769000821656,0.16999,2944.4,2943.9,0.00309297]
[1769000821861,0.16999,2944.3,2943.1,1.24317532]
[1769000822066,0.17,2944.2,2943.1,1.24317532]
[1769000822254,0.17001,2944.1,2943.1,1.24317532]
[1769000822564,0.17001,2944.0,2943.1,1.24317532]
[1769000822764,0.17308109,2944.0,2943.1,1.24626969]
[1769000823561,0.00509484,2944.5,2943.1,1.24626969]